bitfinex-derivatives/quotes_SOLF0:USTF0_20240823
["timestamp","ask_amount","ask_price","bid_price","bid_amount"]
[1724429711642,0.0482084,144.52,144.49,0.04543106]
[1724429712135,3.5077084,144.52,144.49,0.04543106]
[1724429712336,3.5077084,144.52,144.5,1.38371612]
[1724429712643,3.5077084,144.52,144.51,1.38362236]
[1724429712840,3.5077084,144.52,144.49,0.04543106]
[1724429713037,3.5077084,144.52,144.5,4.98862764]
[1724429713236,3.5077084,144.52,144.51,4.98805633]
[1724429713740,3.4598,144.51,144.49,0.04543106]
[1724429714040,3.4598,144.51,144.5,4.98888564]
[1724429714837,32.7398,144.51,144.5,4.98888564]
[1724429715446,3.4598,144.51,144.5,4.98888564]
[1724429717446,3.5077084,144.52,144.5,4.98888564]
[1724429717647,3.5077084,144.52,144.51,3.60516963]
[1724429717848,3.5077084,144.52,144.51,4.98888106]
[1724429719042,32.7877084,144.52,144.51,4.98888106]
[1724429719239,3.4597,144.51,144.49,0.04543106]
[1724429719439,29.28,144.5,144.49,0.04543106]
[1724429720346,0.0482084,144.52,144.49,0.04543106]
[1724429721050,29.28,144.59,144.5,29.28]
[1724429721251,29.28,144.59,144.51,1.4038]
[1724429721447,32.771868,144.59,144.51,1.4038]
[1724429721745,3.4582,144.57,144.53,3.4591]
[1724429721949,3.4582,144.57,144.51,1.4038]
[1724429722152,29.28,144.56,144.53,0.05121336]
[1724429722346,32.7389,144.54,144.53,0.05121336]
[1724429722749,3.4592,144.53,144.48,3.4602]
[1724429722946,29.28,144.52,144.48,3.4602]
[1724429723546,29.28,144.52,144.47,4.784]
[1724429723846,0.04623122,144.51,144.48,0.04617504]
[1724429725352,3.50593122,144.51,144.48,0.04617504]
[1724429726056,0.04623122,144.51,144.48,0.04617504]
[1724429726353,0.04623122,144.51,144.48,3.50637504]
[1724429727055,0.04623122,144.51,144.48,0.04617504]
[1724429727443,39.73357,144.58,144.48,29.32617504]
[1724429727654,3.4586,144.56,144.48,32.7796154]
[1724429727853,29.28,144.58,144.48,32.7796154]
[1724429728046,29.28,144.58,144.51,3.4594]
[1724429728248,29.28,144.58,144.48,32.7796154]
[1724429728647,0.02087392,144.54,144.52,0.04369672]
[1724429729257,29.28,144.6,144.52,29.32369672]
[1724429729756,3.4581,144.58,144.54,3.4587]
[1724429730149,29.28,144.6,144.54,3.4587]
[1724429730351,29.28,144.6,144.53,2.7077]
[1724429730352,3.4582,144.57,144.56,0.04466253]
[1724429732859,29.28,144.59,144.56,0.04466253]
[1724429733253,29.28,144.61,144.56,0.04466253]
[1724429733457,32.7374,144.61,144.56,3.50286253]
[1724429734158,3.4575,144.6,144.56,3.50286253]
[1724429737259,36.51,144.6,144.56,0.04466253]
[1724429737455,4.0108,144.66,144.56,0.04466253]
[1724429737456,36.51,144.58,144.56,0.04466253]
[1724429737755,36.51,144.58,144.56,0.0450389]
[1724429738059,3.4582,144.57,144.56,0.0450389]
[1724429738264,0.04503891,144.54,144.49,1.4169]
[1724429738458,3.50403891,144.54,144.5,3.4597]
[1724429739257,3.50403891,144.54,144.51,3.50748497]
[1724429739464,0.04503891,144.54,144.51,0.04788497]
[1724429740566,0.04503891,144.54,144.51,2.73298497]
[1724429741260,36.51,144.6,144.51,2.6851]
[1724429742066,3.4584,144.57,144.54,3.4587]
[1724429742266,3.4584,144.57,144.54,3.50982525]
[1724429742461,3.458,144.58,144.55,3.4585]
[1724429743153,3.4582,144.57,144.54,3.50992525]
[1724429743359,36.51,144.6,144.54,0.05112525]
[1724429743856,3.4583,144.57,144.54,3.51002525]
[1724429744264,3.4583,144.57,144.54,0.05112525]
[1724429744464,3.4584,144.56,144.54,0.05112525]
[1724429744859,36.51,144.6,144.54,0.05112525]
[1724429745259,3.4579,144.59,144.54,3.50992525]
[1724429745463,36.51,144.6,144.54,0.05112525]
[1724429745865,3.4578,144.59,144.54,0.05112525]
[1724429746263,36.51,144.62,144.54,3.50651978]
[1724429746566,39.99996576,144.64,144.55,1.3294]
[1724429746765,39.99996576,144.64,144.58,0.04991626]
[1724429746967,36.51,144.64,144.58,0.04991626]
[1724429747576,36.51,144.64,144.59,3.4576]
[1724429747577,3.4568,144.63,144.59,3.4576]
[1724429748368,3.457,144.62,144.59,3.4576]
[1724429748567,3.457,144.62,144.58,3.50771626]
[1724429751462,36.51,144.61,144.58,0.04991626]
[1724429751673,36.51,144.59,144.58,0.05263095]
[1724429752172,39.9677,144.59,144.58,0.05263095]
[1724429752966,36.51,144.59,144.51,2.6851]
[1724429753267,36.51,144.56,144.51,2.6851]
[1724429753472,36.51,144.54,144.48,1.4007]
[1724429754065,36.51,144.6,144.5,0.05077296]
[1724429754066,36.56008043,144.52,144.5,0.05077296]
[1724429754275,36.56263095,144.52,144.5,0.05230771]
[1724429754475,40.02203095,144.52,144.5,0.05230771]
[1724429755774,36.56263095,144.52,144.5,0.05230771]
[1724429756469,0.05263095,144.52,144.5,0.05230771]
[1724429758666,0.05263095,144.52,144.51,3.4596]
[1724429759374,0.05263095,144.52,144.5,3.51210771]
[1724429761176,0.05263095,144.52,144.51,3.4596]
[1724429761570,0.05263095,144.52,144.5,0.05230771]
[1724429762877,36.51,144.59,144.5,0.05230771]
[1724429763269,40.98253812,144.61,144.5,0.05230771]
[1724429763469,40.98253812,144.61,144.49,36.51]
[1724429763875,36.51,144.59,144.49,36.51]
[1724429764071,3.4586,144.55,144.54,0.04890087]
[1724429769877,37.8617,144.59,144.54,0.04890087]
[1724429770676,36.51,144.6,144.54,0.04890087]
[1724429770877,37.8906,144.62,144.54,0.04890087]
[1724429771279,3.4573,144.61,144.54,1.34160087]
[1724429771679,2.3548,144.65,144.55,36.51]
[1724429771680,3.4569,144.63,144.55,36.51]
[1724429771982,3.4569,144.63,144.58,0.05219533]
[1724429773279,3.4569,144.63,144.59,3.4577]
[1724429774681,3.4569,144.63,144.58,3.51009533]
[1724429775984,3.4569,144.63,144.59,3.4576]
[1724429776484,39.9664,144.65,144.61,3.4572]
[1724429776683,39.9664,144.65,144.62,0.04901747]
[1724429777284,36.51,144.65,144.62,0.04901747]
[1724429777888,3.4565,144.64,144.62,0.04901747]
[1724429778980,45.63007,144.69,144.62,0.04901747]
[1724429779182,36.51,144.69,144.62,0.04901747]
[1724429779487,3.4558,144.67,144.62,3.50591747]
[1724429780088,3.4561,144.66,144.62,3.50591747]
[1724429780287,3.4561,144.66,144.62,0.04901747]
[1724429780587,36.51,144.64,144.62,0.04901747]
[1724429780795,36.51,144.64,144.62,0.05223768]
[1724429781985,39.9665,144.64,144.62,0.05223768]
[1724429782385,36.51,144.64,144.62,0.05223768]
[1724429782790,39.9666,144.64,144.62,0.05223768]
[1724429784893,36.51,144.64,144.62,0.05223768]
[1724429785693,3.4564,144.65,144.62,0.05223768]
[1724429786287,36.51,144.67,144.62,0.05223768]
[1724429786886,3.4566,144.64,144.62,0.05223768]
[1724429787381,36.51,144.67,144.62,0.05223768]
[1724429787587,3.4567,144.63,144.62,0.05223768]
[1724429787782,3.4567,144.63,144.61,0.04424387]
[1724429789089,32.6566,144.64,144.61,0.04424387]
[1724429791091,3.4568,144.63,144.61,0.04424387]
[1724429791691,3.457,144.62,144.61,0.04424387]
[1724429792594,29.2,144.63,144.54,1.2945]
[1724429792802,29.2,144.57,144.54,4.7532]
[1724429793193,29.2,144.57,144.54,1.2945]
[1724429793500,29.2,144.62,144.54,30.4945]
[1724429793796,0.04424387,144.57,144.54,30.54701626]
[1724429794398,0.04424387,144.57,144.56,3.4584]
[1724429796494,0.04424387,144.57,144.55,3.4585]
[1724429796795,0.04424387,144.57,144.54,1.34701626]
[1724429797302,0.04424387,144.57,144.55,3.4586]
[1724429798397,3.4584,144.56,144.54,0.05251626]
[1724429798995,3.50254387,144.57,144.54,0.05251626]
[1724429799194,3.50254387,144.57,144.54,3.51131626]
[1724429799998,0.04424387,144.57,144.54,3.51131626]
[1724429800397,0.04424387,144.57,144.55,3.4586]
[1724429800593,0.04424387,144.57,144.54,0.05251626]
[1724429800594,3.50244387,144.57,144.54,0.05251626]
[1724429800892,0.04424387,144.57,144.54,0.05251626]
[1724429801301,3.50244387,144.57,144.54,0.05251626]
[1724429801496,0.04424387,144.57,144.54,0.05251626]
[1724429801696,29.2,144.56,144.54,0.05251626]
[1724429802094,3.4586,144.55,144.54,0.05251626]
[1724429804097,32.6586,144.55,144.54,0.05251626]
[1724429804299,29.2,144.55,144.48,4.1163]
[1724429804605,29.2,144.52,144.48,4.1163]
[1724429804793,29.2,144.54,144.48,4.1163]
[1724429805103,3.4596,144.52,144.48,7.5766]
[1724429805402,0.04403877,144.51,144.49,0.04504534]
[1724429808091,3.4598,144.5,144.49,0.04504534]
[1724429808298,0.04403877,144.51,144.49,0.04504534]
[1724429808703,3.50363877,144.51,144.49,0.04504534]
[1724429809096,0.04403877,144.51,144.49,0.04504534]
[1724429810404,3.50373877,144.51,144.49,0.04504534]
[1724429811195,3.4598,144.5,144.49,0.04504534]
[1724429812005,32.6598,144.5,144.49,0.04504534]
[1724429812509,29.2,144.5,144.44,76.6578699]
[1724429812802,29.2,144.48,144.44,76.6578699]
[1724429813004,3.4607,144.47,144.44,76.6578699]
[1724429813206,10.50887,144.54,144.44,76.6578699]
[1724429813207,29.2,144.5,144.44,76.6578699]
[1724429813713,0.05125835,144.48,144.46,0.04365116]
[1724429813904,3.51155835,144.48,144.46,0.04365116]
[1724429814501,0.05125835,144.48,144.46,0.04365116]
[1724429815908,3.51155835,144.48,144.46,0.04365116]
[1724429816109,29.25125835,144.48,144.46,0.04365116]
[1724429816702,0.05125835,144.48,144.46,0.04365116]
[1724429818115,0.05125835,144.48,144.46,3.50435116]
[1724429818607,29.25125835,144.48,144.46,0.04365116]
[1724429820308,3.4606,144.47,144.46,0.04365116]
[1724429822404,0.05125835,144.48,144.46,0.04365116]
[1724429823514,3.51175835,144.48,144.46,0.04365116]
[1724429824320,3.4606,144.47,144.46,0.04365116]
[1724429825914,0.05125835,144.48,144.46,0.04365116]
[1724429827011,0.05125835,144.48,144.47,3.4606]
[1724429828320,0.05125835,144.48,144.46,3.50435116]
[1724429829926,0.05125835,144.48,144.47,3.4606]
[1724429831119,0.05125835,144.48,144.46,3.50435116]
[1724429832923,29.2,144.47,144.46,0.04365116]
[1724429833622,3.51165835,144.48,144.46,0.04365116]
[1724429834024,0.05125835,144.48,144.46,0.04365116]
[1724429835024,3.4606,144.47,144.46,0.04365116]
[1724429836123,3.4609,144.46,144.4,4.0621]
[1724429836429,29.2,144.45,144.42,3.4616]
[1724429837025,3.5342411,144.49,144.4,1.3818]
[1724429837026,29.2,144.43,144.4,1.3818]
[1724429837322,29.25078808,144.43,144.4,1.43407723]
[1724429838119,32.71238808,144.43,144.4,1.43407723]
[1724429838316,29.2,144.41,144.4,0.05227723]
[1724429840521,32.662,144.41,144.4,0.05227723]
[1724429841128,32.662,144.41,144.3,1.4002]
[1724429841129,29.2,144.41,144.31,29.2]
[1724429841324,29.2,144.38,144.31,30.5275]
[1724429841630,29.2,144.38,144.34,3.4635]
[1724429841930,32.6628,144.38,144.31,1.3275]
[1724429842134,0.05001364,144.36,144.34,0.04563101]
[1724429842327,29.2,144.42,144.33,29.2]
[1724429842632,0.04615946,144.39,144.34,0.04416551]
[1724429842932,0.04615946,144.39,144.35,29.2]
[1724429843228,0.04615946,144.39,144.35,1.3405]
[1724429843633,3.50885946,144.39,144.34,0.04416551]
[1724429844028,32.6628,144.38,144.35,3.4634]
[1724429844227,32.6628,144.38,144.34,0.04416551]
[1724429844228,29.2,144.38,144.34,0.04416551]
[1724429844527,32.6629,144.38,144.34,3.50766551]
[1724429845144,3.463,144.37,144.34,3.50766551]
[1724429845429,3.463,144.37,144.34,0.04416551]
[1724429845629,32.663,144.37,144.34,0.04416551]
[1724429845928,29.2,144.35,144.34,0.04416551]
[1724429846435,32.6634,144.35,144.34,0.04416551]
[1724429846631,29.2,144.35,144.29,3.4647]
[1724429846835,32.6641,144.33,144.27,2.6216]
[1724429847037,32.6641,144.33,144.29,3.4648]
[1724429847233,29.2,144.33,144.25,4.69196293]
[1724429847532,0.04990096,144.3,144.28,0.0527216]
[1724429847732,0.04990096,144.3,144.24,2.7184]
[1724429847733,29.2,144.31,144.24,6.21538424]
[1724429847937,29.2,144.29,144.28,0.04564485]
[1724429848138,29.2,144.29,144.24,2.7184]
[1724429848433,29.2,144.29,144.27,0.04814467]
[1724429849030,3.4651,144.28,144.27,0.04814467]
[1724429851240,3.4654,144.27,144.22,3.4664]
[1724429851443,3.4654,144.27,144.2,1.3922]
[1724429851444,29.2,144.25,144.2,1.3922]
[1724429851835,29.2,144.25,144.2,4.8592]
[1724429852344,0.0467563,144.24,144.21,0.04712469]
[1724429853342,0.0467563,144.24,144.22,3.4665]
[1724429854240,0.0467563,144.24,144.21,0.04712469]
[1724429854841,0.0467563,144.24,144.22,3.4664]
[1724429855038,0.0467563,144.24,144.21,0.04712469]
[1724429855438,0.0467563,144.24,144.22,3.4663]
[1724429857543,0.0467563,144.24,144.21,3.51382469]
[1724429857948,3.4666,144.22,144.21,0.04712469]
[1724429858144,29.2,144.23,144.21,0.04712469]
[1724429858648,32.6665,144.23,144.21,0.04712469]
[1724429859341,29.2,144.23,144.21,0.04712469]
[1724429860338,32.6666,144.22,144.21,0.04712469]
[1724429860549,29.2,144.22,144.21,0.04712469]
[1724429862947,29.2,144.23,144.21,0.04712469]
[1724429863241,3.5129563,144.24,144.21,0.04712469]
[1724429863242,0.0467563,144.24,144.21,0.04712469]
[1724429864048,0.0467563,144.24,144.21,3.51392469]
[1724429864448,0.0467563,144.24,144.21,0.04712469]
[1724429864648,0.0467563,144.24,144.22,3.4664]
[1724429865242,0.0467563,144.24,144.23,3.4663]
[1724429865448,0.0467563,144.24,144.21,0.04712469]
[1724429866445,0.0467563,144.24,144.22,3.4664]
[1724429866652,0.0467563,144.24,144.21,0.04712469]
[1724429867155,29.2,144.23,144.21,0.04712469]
[1724429868460,0.0467563,144.24,144.21,0.04712469]
[1724429869351,0.0467563,144.24,144.23,3.4663]
[1724429870152,0.0467563,144.24,144.21,1.35912469]
[1724429870553,0.0467563,144.24,144.22,3.4664]
[1724429870755,0.0467563,144.24,144.21,1.35912469]
[1724429871452,0.0467563,144.24,144.22,3.4664]
[1724429871657,0.0467563,144.24,144.21,1.35912469]
[1724429871864,0.0467563,144.24,144.22,3.4663]
[1724429874962,0.0467563,144.24,144.23,3.4663]
[1724429875764,0.0467563,144.24,144.21,1.35912469]
[1724429876264,0.0467563,144.24,144.23,3.4663]
[1724429876659,54.6483495,144.34,144.21,1.35912469]
[1724429876856,3.4654,144.27,144.23,3.4662]
[1724429877064,32.6654,144.27,144.23,3.4662]
[1724429877367,3.51874422,144.3,144.21,1.312]
[1724429877562,1.3088,144.33,144.21,30.512]
[1724429877875,0.04423598,144.27,144.26,3.4655]
[1724429878170,0.04687416,144.28,144.26,3.4655]
[1724429879671,32.71207416,144.28,144.25,3.51193643]
[1724429879967,29.24687416,144.28,144.25,0.04613643]
[1724429880371,29.2,144.27,144.25,0.04613643]
[1724429880769,3.4656,144.26,144.25,0.04613643]
[1724429881665,3.466,144.25,144.21,1.312]
[1724429881971,29.2,144.24,144.2,1.3282]
[1724429882163,29.2,144.26,144.2,1.3282]
[1724429882366,32.6658,144.26,144.22,3.4665]
[1724429882565,29.2,144.24,144.17,1.3763]
[1724429882768,29.2,144.22,144.17,1.3763]
[1724429883074,29.24772575,144.22,144.19,0.04857336]
[1724429883576,0.04772575,144.22,144.19,0.04857336]
[1724429884678,3.51432575,144.22,144.19,3.51577336]
[1724429884971,0.04772575,144.22,144.19,0.04857336]
[1724429885175,0.04772575,144.22,144.2,3.4669]
[1724429885770,3.51432575,144.22,144.19,3.51567336]
[1724429886470,0.04772575,144.22,144.2,3.467]
[1724429887274,3.51432575,144.22,144.2,3.467]
[1724429887680,0.04772575,144.22,144.2,3.467]
[1724429888371,0.04772575,144.22,144.19,0.04857336]
[1724429888966,0.04772575,144.22,144.2,3.467]
[1724429889674,0.04772575,144.22,144.19,0.04857336]
[1724429890070,29.2,144.21,144.19,0.04857336]
[1724429890271,0.04772575,144.22,144.19,0.04857336]
[1724429891370,3.51432575,144.22,144.19,3.51567336]
[1724429891575,0.04772575,144.22,144.19,0.04857336]
[1724429892072,3.51442575,144.22,144.19,0.04857336]
[1724429892683,0.04772575,144.22,144.2,3.4669]
[1724429892870,0.04772575,144.22,144.19,29.24857336]
[1724429893067,29.2,144.29,144.19,29.24857336]
[1724429893273,3.4655,144.27,144.19,29.2]
[1724429893469,3.4655,144.27,144.21,29.2]
[1724429893680,3.4655,144.27,144.22,1.3768]
[1724429893879,3.4655,144.27,144.24,3.4661]
[1724429894075,0.04868323,144.27,144.24,0.04989833]
[1724429894671,0.04868323,144.27,144.25,3.4656]
[1724429894875,0.04868323,144.27,144.24,0.04989833]
[1724429895281,3.4646,144.31,144.24,0.04989833]
[1724429895476,3.4646,144.31,144.25,29.2]
[1724429896180,3.4642,144.32,144.25,29.2]
[1724429896383,0.05260396,144.3,144.27,0.04485805]
[1724429897076,0.05260396,144.3,144.28,3.4651]
[1724429897277,0.05260396,144.3,144.27,0.04485805]
[1724429897474,0.05260396,144.3,144.27,3.51015805]
[1724429897687,3.4649,144.29,144.27,0.04485805]
[1724429897879,0.05260396,144.3,144.27,0.04485805]
[1724429899390,29.2,144.29,144.27,0.04485805]
[1724429900385,29.2,144.29,144.22,1.3768]
[1724429900587,29.2,144.26,144.22,1.3768]
[1724429900985,29.2,144.26,144.23,3.4663]
[1724429901584,29.25035732,144.26,144.23,3.51547998]
[1724429902292,32.71595732,144.26,144.23,3.51547998]
[1724429902688,0.05035732,144.26,144.23,3.51547998]
[1724429902991,0.05035732,144.26,144.24,3.466]
[1724429903596,0.05035732,144.26,144.25,3.4658]
[1724429905190,0.05035732,144.26,144.24,1.3846]
[1724429905588,0.05035732,144.26,144.25,3.4658]
[1724429907084,29.2,144.31,144.27,3.4653]
[1724429907285,32.6646,144.31,144.27,3.4653]
[1724429908090,0.04688078,144.3,144.28,0.05242461]
[1724429908297,3.51158078,144.3,144.28,0.05242461]
[1724429909494,0.04688078,144.3,144.28,0.05242461]
[1724429910200,0.04688078,144.3,144.29,3.4649]
[1724429910594,29.2,144.35,144.28,0.05242461]
[1724429910790,3.4639,144.34,144.28,1.38682461]
[1724429911189,29.2,144.35,144.29,1.38545104]
[1724429911396,29.2,144.37,144.3,1.38545104]
[1724429911702,0.05242087,144.35,144.32,0.04645339]
[1724429912297,0.05242087,144.35,144.33,1.3853457]
[1724429912504,0.05242087,144.35,144.32,0.04645339]
[1724429913202,0.05242087,144.35,144.33,3.4637]
[1724429913396,0.05242087,144.35,144.32,0.04645339]
[1724429913598,0.05242087,144.35,144.33,1.38527729]
[1724429913795,0.05242087,144.35,144.34,1.38527729]
[1724429914605,0.05242087,144.35,144.34,4.84897729]
[1724429915706,0.05242087,144.35,144.34,3.4637]
[1724429915998,29.2,144.41,144.36,3.4631]
[1724429916203,3.4624,144.4,144.37,1.38510482]
[1724429916401,3.4624,144.4,144.36,3.4631]
[1724429916704,29.2,144.41,144.37,1.38501403]
[1724429916903,3.4626,144.39,144.35,3.4634]
[1724429917105,3.4626,144.39,144.38,0.04649711]
[1724429918896,32.6626,144.39,144.38,0.04649711]
[1724429919098,3.463,144.37,144.32,2.6781]
[1724429919303,32.663,144.37,144.32,2.6781]
[1724429919506,29.2,144.37,144.33,1.38514472]
[1724429919698,3.4628,144.38,144.33,1.38514472]
[1724429919900,3.4628,144.38,144.35,3.4634]
[1724429920203,3.4626,144.39,144.32,31.8781]
[1724429920406,0.04744077,144.38,144.35,0.05169774]
[1724429921007,3.51014077,144.38,144.35,0.05169774]
[1724429922000,0.04744077,144.38,144.35,0.05169774]
[1724429922710,3.51014077,144.38,144.35,3.51499774]
[1724429923006,0.04744077,144.38,144.35,0.05169774]
[1724429923203,0.04744077,144.38,144.36,3.4632]
[1724429923613,0.04744077,144.38,144.35,0.05169774]
[1724429924811,0.04744077,144.38,144.35,3.51499774]
[1724429925203,0.04744077,144.38,144.36,3.4631]
[1724429926001,0.04744077,144.38,144.35,0.05169774]
[1724429927006,3.51024077,144.38,144.35,3.51509774]
[1724429929605,0.04744077,144.38,144.36,3.4632]
[1724429930914,3.51014077,144.38,144.35,3.51509774]
[1724429931311,0.04744077,144.38,144.36,3.4632]
[1724429931513,0.04744077,144.38,144.35,0.05169774]
[1724429931902,3.51034077,144.38,144.35,3.51509774]
[1724429932111,0.04744077,144.38,144.35,0.05169774]
[1724429932410,29.2,144.37,144.35,0.05169774]
[1724429932714,3.4632,144.36,144.35,0.05169774]
[1724429932912,0.04744077,144.38,144.35,0.05169774]
[1724429933111,3.51034077,144.38,144.36,3.4632]
[1724429933311,3.51034077,144.38,144.35,0.05169774]
[1724429933813,3.51034077,144.38,144.35,3.51499774]
[1724429935108,3.463,144.37,144.35,3.51499774]
[1724429936513,3.463,144.37,144.35,0.05169774]
[1724429936904,3.4632,144.36,144.35,0.05169774]
[1724429941716,3.4638,144.34,144.28,1.3825]
[1724429942016,32.6638,144.34,144.31,3.4642]
[1724429942712,32.70884174,144.34,144.31,3.51120494]
[1724429944015,3.50884174,144.34,144.32,3.4642]
[1724429944217,0.04504174,144.34,144.32,3.4642]
[1724429944719,3.50874174,144.34,144.31,3.51130494]
[1724429948416,0.04504174,144.34,144.31,0.04700494]
[1724429948618,0.04504174,144.34,144.31,32.69474636]
[1724429948815,0.04504174,144.34,144.33,3.4639]
[1724429949215,0.04504174,144.34,144.33,4.84906403]
[1724429949721,1.2944,144.43,144.37,3.4629]
[1724429950216,29.2,144.44,144.35,29.2]
[1724429950723,29.2,144.46,144.37,29.2]
[1724429951021,0.04742181,144.41,144.38,0.0447218]
[1724429951414,0.04742181,144.41,144.4,3.4622]
[1724429951610,32.72086621,144.49,144.39,29.2]
[1724429951811,29.2,144.49,144.4,4.90764356]
[1724429952013,3.4604,144.48,144.44,3.4613]
[1724429952420,3.4599,144.5,144.44,3.4613]
[1724429952824,29.2,144.51,144.46,0.05040651]
[1724429952825,0.04476926,144.48,144.46,0.05040651]
[1724429956112,29.2,144.47,144.46,0.05040651]
[1724429958622,0.04476926,144.48,144.46,0.05040651]
[1724429961632,0.04476926,144.48,144.47,3.4606]
[1724429969328,56.9,144.56,144.47,29.2]
[1724429969535,29.2,144.58,144.48,3.54284626]
[1724429969734,29.2,144.58,144.52,3.4594]
[1724429970133,3.4588,144.55,144.52,3.4594]
[1724429970334,3.4588,144.55,144.54,0.05290168]
[1724429973436,3.4591,144.54,144.47,2.6982]
[1724429973732,29.2,144.53,144.49,3.4599]
[1724429973937,32.6601,144.5,144.42,29.2]
[1724429974134,32.6601,144.5,144.42,31.8713]
[1724429974330,29.2,144.5,144.47,3.4604]
[1724429974540,32.6597,144.51,144.43,1.2932]
[1724429974728,0.05215688,144.5,144.47,0.04824164]
[1724429975538,0.05215688,144.5,144.48,3.4601]
[1724429976039,0.05215688,144.5,144.47,0.04824164]
[1724429976541,0.05215688,144.5,144.48,3.4602]
[1724429978028,0.05215688,144.5,144.47,3.50874164]
[1724429978436,0.05215688,144.5,144.47,0.04824164]
[1724429978639,29.25215688,144.5,144.47,0.04824164]
[1724429979632,3.4603,144.49,144.47,0.04824164]
[1724429981137,3.4603,144.48,144.47,0.04824164]
[1724429992554,29.25215688,144.5,144.47,0.04824164]
[1724429992753,0.05215688,144.5,144.47,0.04824164]
[1724429992948,29.25215688,144.5,144.47,0.04824164]
[1724429994252,3.4603,144.48,144.47,0.04824164]
[1724429994648,32.6603,144.48,144.47,0.04824164]
[1724429995456,29.2,144.48,144.36,29.2]
[1724429995753,29.2,144.44,144.4,3.4621]
[1724429995950,3.4617,144.43,144.4,3.4621]
[1724429996349,3.51322662,144.43,144.4,3.51126039]
[1724429997660,0.05152662,144.43,144.41,3.462]
[1724429999255,0.05152662,144.43,144.42,3.4618]
[1724430000665,0.05152662,144.43,144.41,3.4619]
[1724430000961,0.05152662,144.43,144.4,0.04916039]
[1724430001258,29.25152662,144.43,144.4,0.04916039]
[1724430001458,3.4619,144.42,144.4,0.04916039]
[1724430001657,0.05152662,144.43,144.4,3.51126039]
[1724430002360,0.05152662,144.43,144.41,3.4618]
[1724430002557,0.05152662,144.43,144.4,0.04916039]
[1724430002861,0.05152662,144.43,144.4,29.24916039]
[1724430003065,3.4604,144.48,144.41,4.014]
[1724430003361,3.4604,144.48,144.42,29.2]
[1724430003566,3.4604,144.48,144.44,3.4611]
[1724430003763,3.4604,144.48,144.42,29.2]
[1724430004161,0.04371754,144.46,144.44,3.50683812]
[1724430004661,0.04371754,144.46,144.44,0.04573812]
[1724430004859,29.2,144.52,144.45,3.461]
[1724430005263,29.2,144.52,144.42,29.2]
[1724430005264,3.4601,144.5,144.46,3.4607]
[1724430005569,29.2,144.52,144.42,29.2]
[1724430005965,0.04850319,144.48,144.46,0.04536845]
[1724430007469,0.04850319,144.48,144.46,3.50616845]
[1724430009068,0.04850319,144.48,144.46,0.04536845]
[1724430009464,3.50890319,144.48,144.46,0.04536845]
[1724430009764,0.04850319,144.48,144.46,0.04536845]
[1724430010259,0.04850319,144.48,144.46,3.50616845]
[1724430011366,0.04850319,144.48,144.47,3.4606]
[1724430012368,30.5465,144.56,144.5,3.4598]
[1724430012566,30.5465,144.56,144.47,4.70718196]
[1724430012567,30.5465,144.56,144.47,6.05308196]
[1724430012764,3.4595,144.52,144.49,3.46]
[1724430013364,3.50728193,144.52,144.49,3.50384809]
[1724430013570,3.4596,144.51,144.49,0.04384809]
[1724430016067,3.4598,144.5,144.49,0.04384809]
[1724430016269,29.2,144.51,144.41,31.9423]
[1724430016477,32.6603,144.48,144.41,31.9423]
[1724430016678,29.2,144.48,144.41,1.3349]
[1724430017075,3.4609,144.46,144.41,1.3349]
[1724430017273,0.0469859,144.45,144.42,0.04586653]
[1724430017474,3.50869466,144.45,144.42,0.05164062]
[1724430018674,0.04749466,144.45,144.42,3.51324062]
[1724430019075,0.04749466,144.45,144.42,0.05164062]
[1724430020078,0.04749466,144.45,144.44,3.4613]
[1724430020578,0.04749466,144.45,144.42,0.05164062]
[1724430021370,0.04749466,144.45,144.43,3.4614]
[1724430022369,3.50859466,144.45,144.42,3.51334062]
[1724430022571,0.04749466,144.45,144.42,0.05164062]
[1724430023379,3.50859466,144.45,144.42,3.51344062]
[1724430023578,0.04749466,144.45,144.42,0.05164062]
[1724430024078,0.04749466,144.45,144.43,3.4615]
[1724430024784,0.04749466,144.45,144.44,3.4613]
[1724430025680,0.04749466,144.45,144.43,3.4613]
[1724430027182,0.04749466,144.45,144.42,3.51334062]